[Event "53rd Mar Del Plata Open 2024"]
[Site "Mar Del Plata"]
[Date "2024.03.26"]
[Round "4.9"]
[White "Villarreal, Agustin"]
[Black "Acosta, Pablo Ismael"]
[Result "0-1"]
[ECO "E90"]
[WhiteElo "2285"]
[BlackElo "2463"]
[Annotator "TA"]
[PlyCount "56"]
[EventDate "2024.03.23"]
[EventType "swiss"]
[EventCountry "ARG"]
[SourceTitle "playchess.com"]
[Source "ChessBase"]
[SourceQuality "1"]
[TimeControl "5400+30"]

{[%evp 14,56,81,79,102,98,105,83,102,105,116,117,198,191,202,176,216,197,268,273,280,212,203,165,171,144,131,102,153,115,106,86,74,0,0,-18,-7,-3,0,-13,0,0,80,-1091,-1059]} 1. d4 {[%emt 0:00:02]} Nf6 {[%emt 0:00:41]} 2. c4 {[%emt 0:00:06]} c5 {[%emt 0:00:08]} 3. d5 {[%emt 0:00:05]} g6 {[%emt 0:00:41]} 4. Nc3 {[%emt 0:00:13]} d6 {[%emt 0:00:18]} 5. e4 {[%emt 0:00:09]} Bg7 {[%emt 0:00:05]} 6. Nf3 {[%emt 0:00:05][%cal Bg1f3,Bf3h2,Bh2f1][%mdl 32]} O-O {[%emt 0:00:05]} 7. h3 {[%emt 0:00:02]} e5 {[%emt 0:01:23]} 8. g4 {[%emt 0:06:22]} Qa5 {[%emt 0:10:55]} 9. Bd2 {[%emt 0:03:16]} Na6 {[%emt 0:01:08]} 10. Be2 {[%emt 0:04:18]} Bd7 {[%emt 0:02:03] White is better.} 11. Nh2 {[%emt 0:00:22]} Ne8 {[%emt 0:09:09]} 12. Nf1 {[%emt 0:02:10]} f5 {[%emt 0:03:23]} (12... Qd8 $16 {keeps fighting.}) 13. exf5 {[%emt 0:00:21]} gxf5 {[%emt 0:00:52]} 14. Ng3 {[%emt 0:00:02]} Qb6 {[%emt 0:10:12]} 15. gxf5 {[%emt 0:08:28]} Bxf5 {[%emt 0:24:26]} (15... Kh8 {was worth a try.} 16. Bg4 Qd8) 16. Nxf5 $18 {[%emt 0:02:53]} Rxf5 {[%emt 0:00:05]} 17. Bg4 {[%emt 0:17:41]} Rf8 {[%emt 0:01:02]} 18. Rg1 {[%emt 0:01:09]} Kh8 {[%emt 0:03:33]} 19. Ne4 {[%emt 0:15:40]} Qxb2 {[%emt 0:02:03]} 20. Bc3 {[%emt 0:00:18]} Qa3 {[%emt 0:13:45] [#]} (20... Qb6 $142) 21. Rg3 $1 $16 {[%emt 0:00:01][%mdl 1024] Strongly threatening Be6. White has strong compensation. Black is weak on the light squares} Nac7 {[%emt 0:05:53]} 22. Ng5 {[%emt 0:05:14]} Nf6 {[%emt 0:01:34]} 23. Be6 {[%emt 0:00:59]} (23. Qc2 $16) 23... Rae8 $11 {[%emt 0:02:35]} 24. Qe2 {[%emt 0:11:25][%cal Oc3e5]} Re7 {[%emt 0:03:11] Hoping for ...h6.} 25. Bxe5 $1 {[%emt 0:12:58]} Qa6 {[%emt 0:00:22]} 26. Bb2 {[%emt 0:00:02] Threatens to win with Ra3. This pair of bishops is nice.} h6 {[%emt 0:00:19]} 27. Ne4 {[%emt 0:05:58]} Nxe6 {[%emt 0:00:19] [#]} (27... Nxe4 $11 {keeps the balance.} 28. Rxg7 Qa5+ (28... Nxf2 29. Rxe7+) 29. Kf1 Nd2+ (29... Nxf2 30. Rxe7+) 30. Kg2 Rxg7+ 31. Bxg7+ Kxg7 32. Qg4+ Kh8) 28. Rxg7 $4 {[%emt 0:00:12][%mdl 8192]} Nxg7 {[%emt 0:04:20] Weighted Error Value: White=0.41/Black=0.22 (precise) .  Loses game:     	White=1     	---        Mistake:       	White=1     	Black=4      OK:         	White=5     	Black=7      Strong:       	White=2     	---} ({Worse is} 28... Rxg7 29. dxe6 Qa5+ (29... Rg1+ $2 30. Kd2 $18) 30. Nc3 $14 (30. Kf1 Nxe4 31. Qxe4 Qd2 $11)) 0-1

[Event "53rd Mar Del Plata Open 2024"]
[Site "Mar Del Plata"]
[Date "2024.03.26"]
[Round "4.10"]
[White "Flores, Diego"]
[Black "Di Muro, Matias"]
[Result "1-0"]
[ECO "D11"]
[WhiteElo "2530"]
[BlackElo "2234"]
[Annotator "TA"]
[PlyCount "85"]
[EventDate "2024.03.23"]
[EventType "swiss"]
[EventCountry "ARG"]
[SourceTitle "playchess.com"]
[Source "ChessBase"]
[SourceQuality "1"]
[TimeControl "5400+30"]

{[%evp 9,85,18,27,39,35,35,39,40,24,33,149,162,214,169,179,175,267,271,254,263,282,274,289,295,289,231,485,478,550,540,533,562,530,544,590,591,590,570,673,290,286,309,318,307,332,330,402,372,378,311,523,491,463,403,439,400,574,595,599,585,633,624,605,522,543,525,624,600,653,673,695,707,675,580,710,627,29995,2210]} 1. c4 {[%emt 0:00:13]} c6 {[%emt 0:00:36]} 2. Nf3 {[%emt 0:01:52]} Nf6 {[%emt 0:00:34]} 3. d4 {[%emt 0:03:39]} d5 {[%emt 0:00:41]} 4. e3 {[%emt 0:00:06]} Bg4 {[%emt 0:04:28]} 5. Qb3 {[%emt 0:01:33]} Qc7 {[%emt 0:02:23]} 6. Ne5 {[%emt 0:01:34]} Bf5 {[%emt 0:02:21]} 7. cxd5 {[%emt 0:02:55]} cxd5 {[%emt 0:09:51]} 8. Nc3 {[%emt 0:00:45] White is slightly better.} e6 {[%emt 0:23:02]} 9. Bb5+ {[%emt 0:04:37]} Nfd7 {[%emt 0:06:42]} ({Black should play} 9... Nc6 $14) 10. e4 $1 $16 {[%emt 0:22:16] White is more active.} dxe4 {[%emt 0:11:04]} (10... Bxe4 {was necessary.} 11. Nxe4 dxe4) 11. Bf4 {[%emt 0:01:26][%cal Bc1f4,Bf4d2,Bd2b4][%mdl 32] And now Nxd7 would win.} Bd6 {[%emt 0:18:00]} 12. g4 $36 {[%emt 0:32:13][%mdl 2048] White is in control.} Bxg4 {[%emt 0:08:50] [#]} (12... Bg6 $142) 13. Bxd7+ $1 $18 {[%emt 0:00:31]} (13. Nxe4 Bxe5 14. dxe5 O-O $11) 13... Nxd7 {[%emt 0:00:17] [#]} 14. Nb5 $1 {[%emt 0:00:04] Excellent horsemanship.} Qa5+ {[%emt 0:06:48]} 15. Bd2 {[%emt 0:00:10]} Qa6 {[%emt 0:00:48]} 16. Nxg4 {[%emt 0:00:35]} Rc8 {[%emt 0:00:51]} 17. a4 {[%emt 0:04:25]} Be7 $2 {[%emt 0:00:55]} (17... Bb8 18. Qb4 f6) 18. Bb4 {[%emt 0:00:27]} Rc6 {[%emt 0:00:46]} 19. Ne5 {[%emt 0:05:44]} Nxe5 {[%emt 0:00:04]} 20. dxe5 {[%emt 0:00:05]} Qb6 {[%emt 0:00:29]} 21. O-O {[%emt 0:01:36]} a6 {[%emt 0:00:37]} 22. Bxe7 {[%emt 0:01:15]} Kxe7 {[%emt 0:00:20]} 23. Qa3+ {[%emt 0:01:19]} Qc5 {[%emt 0:00:21]} 24. Nd6 {[%emt 0:04:12]} (24. Na7 $142 Qxa3 25. Nxc6+ (25. Rxa3 Rc7 $17) 25... bxc6 26. Rxa3) 24... Qxa3 {[%emt 0:00:35]} 25. Rxa3 {[%emt 0:00:08]} Rc5 {[%emt 0:01:00]} 26. Nxb7 {[%emt 0:02:19]} ({Resist} 26. Nxe4 $6 Rxe5 27. Nc3 Rd8 $18) 26... Rxe5 {[%emt 0:00:06]} 27. Rc1 {[%emt 0:00:21]} Rb8 {[%emt 0:00:50]} 28. Rc7+ {[%emt 0:00:13]} Kf6 {[%emt 0:00:14]} 29. Nd6 {[%emt 0:00:32][%cal Bb7d6,Bd6c4,Bc4e3][%mdl 32]} Rd5 $2 {[%emt 0:00:53]} (29... e3 30. Rxf7+ (30. Rxe3 Rxe3 31. Rxf7+ Kg6 $18) 30... Kg6 31. Rxe3 (31. fxe3 Rd8 $16) 31... Rxe3) 30. Rxf7+ {[%emt 0:00:07]} Ke5 {[%emt 0:00:19]} 31. Nc4+ {[%emt 0:01:17]} Kd4 {[%emt 0:00:07]} 32. Rc7 {[%emt 0:01:38]} Rb4 {[%emt 0:00:50]} (32... Rc5 $142) 33. Ne3 {[%emt 0:02:09]} Rg5+ {[%emt 0:00:25]} 34. Kf1 {[%emt 0:00:04]} Rxb2 {[%emt 0:00:45]} 35. Ra1 {[%emt 0:00:13] Prevents Rb1+.} Rb3 {[%emt 0:00:27]} 36. Rd1+ {[%emt 0:00:57]} Ke5 {[%emt 0:00:40]} 37. Rf7 {[%emt 0:01:36]} Rb4 {[%emt 0:00:27] Inhibits Nc4+.} 38. h3 {[%emt 0:00:20]} h5 {[%emt 0:00:13]} 39. a5 {[%emt 0:04:34]} Rd4 {[%emt 0:00:35]} 40. Rc1 {[%emt 0:00:00]} Kd6 {[%emt 0:00:27]} 41. Ra7 {[%emt 0:00:00]} Ra4 {[%emt 0:00:41]} 42. Nc4+ {[%emt 0:00:00]} Kd5 {[%emt 0:00:31]} 43. Nb6+ {[%emt 0:00:00] Black did not feel at home in the position after the opening.   Weighted Error Value: White=0.27 (precise) /Black=0.56.  Mistake:       	White=1     	Black=6      Inaccurate:     	---       	Black=1      OK:         	White=14    	Black=9      Best:        	White=2     	Black=1      Strong:       	White=3     	---} (43. Rd7+ $142 Kc5 44. Ne5+ Rc4 45. Rxc4+ Kb5 46. Rb7+ Kxa5 47. Nc6#) 1-0

[Event "53rd Mar Del Plata Open 2024"]
[Site "Mar Del Plata"]
[Date "2024.03.27"]
[Round "5.1"]
[White "Acosta, Pablo Ismael"]
[Black "Christiansen, Johan-Sebastian"]
[Result "0-1"]
[ECO "A25"]
[WhiteElo "2463"]
[BlackElo "2633"]
[Annotator "TA"]
[PlyCount "135"]
[EventDate "2024.03.23"]
[EventType "swiss"]
[EventCountry "ARG"]
[SourceTitle "playchess.com"]
[Source "ChessBase"]
[SourceQuality "1"]
[TimeControl "5400+30"]

{[%evp 63,135,-30,-30,-30,-30,-35,-3,-48,-4,-8,-8,-8,-4,-6,0,0,0,-8,-8,-8,0,0,0,-8,0,0,0,0,0,0,0,0,0,0,0,0,0,0,0,0,0,0,0,0,0,0,0,0,0,0,0,0,0,0,0,0,0,0,0,-45,-45,-45,-45,-45,-45,-45,-45,-45,-45,-45,-45,-45,-45,-53]} 1. c4 {[%emt 0:00:38]} e5 {[%emt 0:03:25]} 2. g3 {[%emt 0:00:36]} Nc6 {[%emt 0:00:17]} 3. Bg2 {[%emt 0:00:44]} g6 {[%emt 0:00:33]} 4. Nc3 {[%emt 0:00:07]} Bg7 {[%emt 0:00:10]} 5. d3 {[%emt 0:01:03]} d6 {[%emt 0:00:17]} 6. e3 {[%emt 0:01:49]} Nge7 {[%emt 0:08:49]} 7. Nge2 {[%emt 0:01:22]} h5 {[%emt 0:03:00]} 8. h4 {[%emt 0:03:45]} Bg4 {[%emt 0:00:06]} 9. b3 {[%emt 0:01:25] A25: English Opening vs King's Indian with ...Nc6 but without early d3.} Qd7 {[%emt 0:06:33]} 10. Bb2 {[%emt 0:01:03]} a5 {[%emt 0:03:27]} 11. Qd2 {[%emt 0:03:39]} O-O {[%emt 0:01:59]} 12. Nd5 $146 {[%emt 0:18:36]} ({Predecessor:} 12. Ne4 b6 13. Ng5 Qe8 14. O-O Rd8 15. Nc3 f6 16. Nf3 Qd7 17. d4 Bh3 18. Rad1 Bxg2 19. Kxg2 {½-½ Timofeev,A (2580)-Chigaev,M (2588) EU-ch Online 2300+ Final 2020 (4)}) 12... a4 {[%emt 0:11:15]} 13. O-O {[%emt 0:03:18]} Nxd5 {[%emt 0:02:31]} 14. cxd5 {[%emt 0:03:10]} Ne7 {[%emt 0:00:31]} 15. Rfc1 {[%emt 0:19:15]} c6 {[%emt 0:23:40]} 16. dxc6 {[%emt 0:01:43]} bxc6 {[%emt 0:00:10]} 17. bxa4 {[%emt 0:06:39]} Bxe2 {[%emt 0:05:07]} 18. Qxe2 {[%emt 0:00:04]} Rxa4 {[%emt 0:00:03]} 19. Qc2 {[%emt 0:02:30]} Ra6 {[%emt 0:00:36]} 20. a4 {[%emt 0:00:32]} Rfa8 {[%emt 0:01:15]} 21. Bc3 {[%emt 0:01:59]} Nd5 {[%emt 0:04:05]} 22. Bd2 {[%emt 0:02:34]} Bf6 {[%emt 0:00:59]} 23. a5 {[%emt 0:04:01]} Bd8 {[%emt 0:00:46]} 24. Ra4 {[%emt 0:02:03]} Kg7 {[%emt 0:04:33]} 25. Qa2 {[%emt 0:03:57]} Nc7 {[%emt 0:01:58]} 26. f4 {[%emt 0:01:11]} exf4 {[%emt 0:02:44]} 27. Rxf4 {[%emt 0:01:09]} Ne6 {[%emt 0:02:41]} 28. Ra4 {[%emt 0:08:07]} d5 {[%emt 0:00:28]} 29. e4 {[%emt 0:02:35]} Bxa5 {[%emt 0:07:30]} 30. Rxa5 {[%emt 0:04:12]} Qa7+ {[%emt 0:01:45]} 31. Kh2 {[%emt 0:00:27]} Rxa5 {[%emt 0:00:05]} 32. Bxa5 {[%emt 0:00:06]} Qxa5 {[%emt 0:00:02]} 33. Qb2+ {[%emt 0:01:35]} d4 {[%emt 0:01:28]} 34. Rxc6 {[%emt 0:00:02]} Qa2 {[%emt 0:01:28]} 35. Qc2 {[%emt 0:01:19]} Ra3 {[%emt 0:02:32]} 36. Qxa2 {[%emt 0:00:37]} Rxa2 {[%emt 0:00:01]} 37. Kg1 $1 {[%emt 0:00:32]} Rd2 {[%emt 0:01:34]} 38. Bf1 {[%emt 0:00:01]} Kf6 {[%emt 0:00:30]} 39. Ra6 {[%emt 0:00:14]} Rc2 {[%emt 0:00:16]} 40. Rd6 {[%emt 0:00:47]} Ke7 {[%emt 0:00:23]} 41. Rd5 {[%emt 0:00:18]} Rd2 {[%emt 0:00:41]} 42. Ra5 {[%emt 0:00:34]} Rc2 {[%emt 0:00:45]} 43. Rd5 {[%emt 0:00:05]} Rd2 {[%emt 0:00:27]} 44. Ra5 {[%emt 0:00:01]} Kf6 {[%emt 0:00:19]} 45. Rd5 {[%emt 0:00:14]} Kg7 {[%emt 0:00:23]} 46. Rd7 {[%emt 0:00:09]} g5 {[%emt 0:00:37]} 47. Rd5 {[%emt 0:00:21]} Kg6 {[%emt 0:00:24]} 48. Rf5 {[%emt 0:00:19]} Rc2 {[%emt 0:00:19]} 49. hxg5 {[%emt 0:01:53]} Nxg5 {[%emt 0:00:11]} 50. Rf2 {[%emt 0:01:12]} Rxf2 {[%emt 0:01:17]} 51. Kxf2 {[%emt 0:00:01]} Ne6 {[%emt 0:00:31]} 52. Be2 {[%emt 0:00:57]} Kg5 {[%emt 0:00:09]} 53. Kf3 {[%emt 0:00:19]} f6 {[%emt 0:00:25]} 54. Kg2 {[%emt 0:00:28]} Nc5 {[%emt 0:00:26]} 55. Kf2 {[%emt 0:01:10]} Na4 {[%emt 0:00:19]} 56. Kf3 {[%emt 0:00:19]} Nc3 {[%emt 0:00:08]} 57. Bf1 {[%emt 0:00:36]} Nd1 {[%emt 0:00:16]} 58. Bh3 {[%emt 0:00:25]} Nb2 {[%emt 0:01:14]} 59. Ke2 {[%emt 0:00:08]} Na4 {[%emt 0:00:06]} 60. Bd7 {[%emt 0:00:29]} Nc5 {[%emt 0:00:10]} 61. Bf5 {[%emt 0:00:25]} h4 {[%emt 0:00:44]} 62. gxh4+ {[%emt 0:00:15]} Kxh4 {[%emt 0:00:01]} 63. Bc8 {[%emt 0:00:32]} Kg3 {[%emt 0:00:06]} 64. Bf5 {[%emt 0:00:20]} Na4 {[%emt 0:00:25]} 65. Bd7 {[%emt 0:00:40]} Nc3+ {[%emt 0:00:12]} 66. Kd2 {[%emt 0:00:10]} Kf2 {[%emt 0:00:04]} (66... Kf3 $5) 67. Be8 {[%emt 0:00:41]} Ne2 {[%emt 0:00:11]} 68. Bc6 {[%emt 0:02:03]} 0-1

[Event "53rd Mar Del Plata Open 2024"]
[Site "Mar Del Plata"]
[Date "2024.03.27"]
[Round "5.2"]
[White "Marrujo Pardo, Mauricio Emmanuel"]
[Black "Flores, Diego"]
[Result "0-1"]
[ECO "B42"]
[WhiteElo "2337"]
[BlackElo "2530"]
[Annotator "TA"]
[PlyCount "98"]
[EventDate "2024.03.23"]
[EventType "swiss"]
[EventCountry "ARG"]
[SourceTitle "playchess.com"]
[Source "ChessBase"]
[SourceQuality "1"]
[TimeControl "5400+30"]

1. e4 {[%emt 0:00:34]} c5 {[%emt 0:00:13]} 2. Nf3 {[%emt 0:00:56]} e6 {[%emt 0:00:42]} 3. d4 {[%emt 0:00:16]} cxd4 {[%emt 0:00:07]} 4. Nxd4 {[%emt 0:00:05]} a6 {[%emt 0:00:22]} 5. c4 {[%emt 0:01:14]} Nf6 {[%emt 0:01:47]} 6. Nc3 {[%emt 0:00:25]} d6 {[%emt 0:01:19]} 7. Bd3 {[%emt 0:16:23]} g6 {[%emt 0:03:53]} 8. O-O {[%emt 0:12:01]} Bg7 {[%emt 0:00:25]} 9. Qa4+ $146 {[%emt 0:10:28] B42: Sizilianisch (Paulsen-Variante).} ({Predecessor:} 9. Be3 O-O 10. h3 b6 11. a4 Nfd7 12. Qd2 Bb7 13. Rfd1 Qc7 14. Rac1 Nc5 15. Bc2 Rd8 16. b4 Ncd7 17. Bb3 Nf6 18. Bg5 {1-0 Sadhwani,R (2627)-Vallejo Pons,F (2710) Krasnogorsk Blitz 2023 (15)}) 9... Nfd7 {[%emt 0:01:48]} 10. Ndb5 {[%emt 0:08:18]} Nc5 {[%emt 0:25:27]} 11. Qa3 {[%emt 0:16:44]} b6 {[%emt 0:06:45]} 12. e5 {[%emt 0:15:12]} axb5 {[%emt 0:30:53]} (12... Nxd3 $2 13. Nxd6+ (13. exd6 $2 O-O $19) 13... Kf8 14. Bg5 (14. Nxc8+ Nc5 $18) 14... Qxg5 15. Nxc8+ Nc5 16. Nxb6 $18) (12... dxe5 13. Be4 Bb7 14. Bxb7 $16 (14. Rd1 Qxd1+ 15. Nxd1 $17)) (12... Bxe5 $19) 13. Qxa8 $17 {[%emt 0:00:07]} Bb7 {[%emt 0:02:54]} 14. Qa3 {[%emt 0:01:20] [#]} (14. Qa7 $2 Nc6 $19 (14... dxe5 $2 15. cxb5 Nbd7 16. Be3 $18) (14... dxe5 $2 15. cxb5 Nbd7 16. Be3 $18)) 14... b4 $1 {[%emt 0:03:02]} (14... Nxd3 $2 15. Nxb5 (15. Qxd6 $2 Qxd6 16. exd6 bxc4 $19) 15... O-O 16. Qxd3 $18) 15. Qxb4 {[%emt 0:00:04]} O-O $2 {[%emt 0:01:58]} ({Günstiger ist} 15... Nxd3 $17 16. Qxd6 Qxd6 (16... Nxe5 17. Nb5 $11) (16... Bxe5 $2 17. Qxd8+ Kxd8 18. Rd1 $18) 17. exd6 Ne5) 16. Be2 $11 {[%emt 0:08:36]} Nc6 {[%emt 0:00:29]} 17. Qa3 {[%emt 0:00:11]} Nd4 {[%emt 0:03:26]} 18. Bd1 {[%emt 0:00:36]} Qh4 {[%emt 0:01:36]} 19. Ne2 {[%emt 0:01:35]} (19. exd6 $11 Nf5 20. d7) 19... Qe4 $17 {[%emt 0:01:17]} 20. Nf4 {[%emt 0:01:55]} dxe5 {[%emt 0:01:53]} ({Natürlich nicht} 20... Qxe5 21. Qb4 $11) (20... Bxe5 {scheint wilder zu sein.} 21. Qe3 Qc6 22. Qh3 b5) 21. f3 {[%emt 0:00:43]} Qc6 {[%emt 0:02:35]} 22. Ne2 $1 {[%emt 0:03:12]} Ra8 {[%emt 0:00:42]} (22... e4 $15 23. Nxd4 Bxd4+ 24. Kh1 (24. Be3 Ra8 $19) 24... Ra8) 23. Qe3 {[%emt 0:00:09]} (23. Nxd4 $1 $11 {war der einzige Weg, das Gleichgewicht zu halten.} exd4 24. Qb4) 23... Nf5 $17 {[%emt 0:00:15]} 24. Qd2 {[%emt 0:00:50]} e4 {[%emt 0:00:03]} 25. Ng3 {[%emt 0:00:35]} Qc7 {[%emt 0:04:44]} ({Vorzuziehen ist} 25... Bd4+ $17 26. Kh1 Nxg3+ 27. hxg3 e5) 26. Nxf5 $1 $15 {[%emt 0:00:28]} exf5 {[%emt 0:00:02]} 27. Qc2 {[%emt 0:00:26]} (27. Kh1 $142) 27... Nd3 {[%emt 0:01:18]} (27... Be5 $142 28. g3 Bd4+ 29. Kh1 Nd3) 28. Kh1 $17 {[%emt 0:00:33]} Re8 {[%emt 0:00:28]} 29. Be2 {[%emt 0:00:14]} (29. fxe4 $1 $15 Bxe4 30. Bf3) 29... Nc5 {[%emt 0:03:03]} (29... exf3 $17 30. Bxf3 Ne1) 30. Rb1 {[%emt 0:00:30] [#]} (30. Bd2 $1 $11 {hält das Gleichgewicht.}) 30... Ne6 $1 $17 {[%emt 0:00:08]} 31. Be3 {[%emt 0:00:17]} f4 {[%emt 0:00:04]} 32. Bd2 {[%emt 0:00:58]} Nd4 {[%emt 0:00:26]} 33. Qd1 {[%emt 0:00:01]} exf3 {[%emt 0:00:51]} (33... Qc8 $19 {Und jetzt ...Nxe2 wäre schön.} 34. fxe4 Bxe4) 34. Bxf3 $15 {[%emt 0:00:02]} Nxf3 {[%emt 0:00:10]} 35. gxf3 {[%emt 0:00:00]} Qxc4 {[%emt 0:00:45]} 36. Bc3 {[%emt 0:00:11]} Bxc3 {[%emt 0:01:45]} 37. bxc3 {[%emt 0:00:11]} b5 {[%emt 0:00:40]} (37... Qxa2 38. Rxb6 Bd5 39. Rd6) 38. Qd4 {[%emt 0:00:47]} Qxa2 {[%emt 0:00:37]} 39. Qxf4 {[%emt 0:01:20]} Qe2 {[%emt 0:00:11]} 40. Kg1 {[%emt 0:01:07]} Bd5 {[%emt 0:00:23]} 41. Rf2 {[%emt 0:00:51]} Qd3 {[%emt 0:00:04]} 42. Rc1 {[%emt 0:00:17]} h5 {[%emt 0:00:42]} 43. Qd4 {[%emt 0:00:47]} Qf5 {[%emt 0:00:06]} 44. Rcf1 {[%emt 0:00:22]} Bc4 {[%emt 0:00:24]} 45. Ra1 {[%emt 0:00:23]} Kh7 {[%emt 0:00:15]} 46. Rd1 {[%emt 0:00:44]} Re5 {[%emt 0:01:14]} 47. Kh1 $2 {[%emt 0:00:30][%mdl 8192]} (47. Qd2 $15) 47... Rd5 $19 {[%emt 0:00:05]} 48. Qxd5 {[%emt 0:00:27]} Bxd5 {[%emt 0:00:04]} 49. Rdf1 {[%emt 0:00:33]} Qg4 {[%emt 0:00:12]} 0-1

[Event "53rd Mar Del Plata Open 2024"]
[Site "Mar Del Plata"]
[Date "2024.03.27"]
[Round "5.3"]
[White "Tristan, Leonardo"]
[Black "Acosta, Franco Emanuel"]
[Result "1-0"]
[ECO "D22"]
[WhiteElo "2521"]
[BlackElo "2115"]
[Annotator "TA"]
[PlyCount "51"]
[EventDate "2024.03.23"]
[EventType "swiss"]
[EventCountry "ARG"]
[SourceTitle "playchess.com"]
[Source "ChessBase"]
[SourceQuality "1"]
[TimeControl "5400+30"]

{[%evp 20,51,40,33,60,30,37,23,38,8,24,25,79,66,84,70,235,228,402,423,422,431,425,422,662,625,627,580,636,627,668,657,638,631]} 1. d4 {[%emt 0:00:02]} d5 {[%emt 0:03:41]} 2. c4 {[%emt 0:00:15]} dxc4 {[%emt 0:01:12]} 3. Nf3 {[%emt 0:00:08]} Nf6 {[%emt 0:00:28]} 4. e3 {[%emt 0:00:08]} Bg4 {[%emt 0:02:35]} 5. Bxc4 {[%emt 0:00:29]} e6 {[%emt 0:00:07]} 6. Nc3 {[%emt 0:01:13]} a6 {[%emt 0:00:33]} 7. h3 {[%emt 0:00:53]} Bh5 {[%emt 0:00:31]} 8. g4 {[%emt 0:01:54]} Bg6 {[%emt 0:00:16]} 9. Ne5 {[%emt 0:00:05]} Nbd7 {[%emt 0:06:51]} 10. Nxg6 {[%emt 0:01:04]} hxg6 {[%emt 0:00:11]} 11. Bf1 {[%emt 0:00:07]} c5 {[%emt 0:18:45]} 12. d5 {[%emt 0:11:20]} exd5 {[%emt 0:14:29][%cal Od5d4]} 13. g5 {[%emt 0:31:22]} Ne4 {[%emt 0:11:45] White has an edge.} 14. Qxd5 {[%emt 0:03:10]} Nxg5 {[%emt 0:06:17]} 15. Qxb7 {[%emt 0:13:35][%cal Of1g2]} Be7 {[%emt 0:12:34]} (15... Rb8 $1 $11 16. Qd5 Be7) 16. Bg2 $16 {[%emt 0:05:25] White is more active.} (16. Bxa6 Rb8 17. Qc6 Bf6 $15 (17... Nxh3 $2 {loses.} 18. Bf1 $18)) 16... Rb8 {[%emt 0:01:28]} 17. Qxa6 {[%emt 0:00:19]} Ne5 $2 {[%emt 0:03:58] [#] This move loses the game for Black.} (17... Rb6 $14 18. Qa8 Rb8) 18. Ke2 $1 $18 {[%emt 0:03:27]} c4 $2 {[%emt 0:08:32]} (18... Ne6 {was necessary.} 19. Rd1 Qb6 20. Qxb6 Rxb6) 19. Rd1 {[%emt 0:03:58]} Nd3 {[%emt 0:00:41] White is clearly winning.} 20. Qxc4 {[%emt 0:01:10]} Nxc1+ {[%emt 0:00:27]} 21. Raxc1 {[%emt 0:00:38]} Rxb2+ {[%emt 0:00:26]} (21... Qc8 $142 22. Qxc8+ Rxc8) 22. Kf1 {[%emt 0:00:18]} Qb8 {[%emt 0:01:45]} 23. Qc6+ {[%emt 0:01:37]} Kf8 {[%emt 0:00:13]} 24. Na4 {[%emt 0:00:33] [#] Hoping for Qc8+.} Kg8 {[%emt 0:02:27]} 25. Nxb2 {[%emt 0:03:17]} Qxb2 {[%emt 0:00:55]} 26. Rb1 {[%emt 0:00:36] Weighted Error Value: White=0.07 (flawless) /Black=0.51.  Loses game:     	---       	Black=1      Mistake:       	---       	Black=3      Inaccurate:     	White=2     	---        OK:         	White=2     	Black=7      Best:        	White=3     	---        Strong:       	White=1     	---} 1-0